fUST/lending_fUST_20250218
["ID","MTS","AMOUNT","RATE_DAILY","PERIOD"]
[353462431,1739855378199,-500.0,0.00013698,2]
[353462432,1739855378221,-500.0,0.00013698,2]
[353462433,1739855378242,-500.0,0.00013698,2]
[353462434,1739855378266,-500.0,0.00013698,2]
[353462435,1739855378288,-500.0,0.00013698,2]
[353462436,1739855378310,-500.0,0.00013698,2]
[353462437,1739855378333,-500.0,0.00013698,2]
[353462438,1739855378355,-500.0,0.00013698,2]
[353462439,1739855378378,-500.0,0.00013698,2]
[353462440,1739855378400,-500.0,0.00013698,2]
[353462441,1739855378423,-500.0,0.00013698,2]
[353462442,1739855378449,-175.428824,0.00013699,2]
[353462443,1739855378471,-189.99181992,0.00013763,2]
[353462444,1739855378492,-500.0,0.00013779,2]
[353462445,1739855378516,-490.21155356,0.00013779,2]
[353462446,1739855378538,-500.0,0.0001378,2]
[353462447,1739855378558,-500.0,0.0001378,2]
[353462448,1739855378580,-500.0,0.0001378,2]
[353462449,1739855378602,-500.0,0.0001378,2]
[353462450,1739855378623,-507.45351471,0.0001378,2]
[353462451,1739855378644,-500.0,0.0001378,2]
[353462452,1739855378666,-249.74398771,0.0001378,2]
[353462453,1739855378687,-500.0,0.0001378,2]
[353462454,1739855378709,-506.8653308,0.0001378,2]
[353462455,1739855378730,-502.38710748,0.0001378,2]
[353462456,1739855378751,-500.0,0.0001378,2]
[353462457,1739855378772,-500.0,0.0001378,2]
[353462458,1739855378793,-500.0,0.0001378,2]
[353462459,1739855378814,-500.0,0.0001378,2]
[353462460,1739855378835,-500.0,0.0001378,2]
[353462461,1739855378856,-515.50921435,0.0001378,2]
[353462462,1739855378879,-500.0,0.0001378,2]
[353462463,1739855378901,-643.43969972,0.0001378,2]
[353462464,1739855378923,-500.0,0.0001378,2]
[353462465,1739855378945,-503.7390029,0.0001378,2]
[353462466,1739855378970,-500.0,0.0001378,2]
[353462467,1739855378991,-500.0,0.0001378,2]
[353462468,1739855379013,-502.66102143,0.0001378,2]
[353462469,1739855379035,-500.0,0.0001378,2]
[353462470,1739855379058,-500.0,0.0001378,2]
[353462471,1739855379080,-501.34777137,0.0001378,2]
[353462472,1739855379103,-500.0,0.0001378,2]
[353462473,1739855379127,-500.0,0.0001378,2]
[353462474,1739855379152,-500.0,0.0001378,2]
[353462475,1739855379174,-500.0,0.0001378,2]
[353462476,1739855379195,-517.88,0.0001378,2]
[353462477,1739855379217,-500.0,0.0001378,2]
[353462478,1739855379239,-500.0,0.0001378,2]
[353462479,1739855379261,-500.0,0.0001378,2]
[353462480,1739855379283,-500.0,0.0001378,2]
[353462481,1739855379305,-500.0,0.0001378,2]
[353462482,1739855379327,-500.0,0.0001378,2]
[353462483,1739855379349,-500.0,0.0001378,2]
[353462484,1739855379371,-527.74,0.0001378,2]
[353462485,1739855379393,-500.0,0.0001378,2]
[353462486,1739855379414,-500.0,0.0001378,2]
[353462487,1739855379440,-500.0,0.0001378,2]
[353462488,1739855379462,-500.0,0.0001378,2]
[353462489,1739855379485,-500.0,0.0001378,2]
[353462490,1739855379507,-500.0,0.0001378,2]
[353462491,1739855379530,-500.0,0.0001378,2]
[353462492,1739855379552,-500.0,0.0001378,2]
[353462493,1739855379574,-495.0,0.0001378,2]
[353462494,1739855379597,-500.0,0.0001378,2]
[353462495,1739855379618,-500.0,0.0001378,2]
[353462496,1739855379640,-500.0,0.0001378,2]
[353462497,1739855379662,-500.0,0.0001378,2]
[353462498,1739855379684,-500.0,0.0001378,2]
[353462499,1739855379706,-316.43129414,0.0001378,2]
[353462500,1739855379729,-500.0,0.0001378,2]
[353462501,1739855379750,-500.0,0.0001378,2]
[353462502,1739855379774,-500.0,0.0001378,2]
[353462503,1739855379799,-296.03964818,0.0001378,2]
[353462504,1739855379823,-500.0,0.0001378,2]
[353462505,1739855379846,-500.0,0.0001378,2]
[353462506,1739855379869,-245.42317015,0.0001378,2]
[353462507,1739855379892,-540.37,0.0001378,2]
[353462508,1739855379915,-500.0,0.0001378,2]
[353462509,1739855379938,-500.0,0.0001378,2]
[353462510,1739855379960,-500.0,0.0001378,2]
[353462511,1739855379982,-501.12430555,0.0001378,2]
[353462512,1739855380004,-500.0,0.0001378,2]
[353462513,1739855380029,-667.67,0.0001378,2]
[353462514,1739855380052,-361.91,0.0001378,2]
[353462515,1739855380075,-467.00146288,0.0001378,2]
[353462516,1739855380097,-649.59,0.0001378,2]
[353462517,1739855380122,-500.0,0.0001378,2]
[353462518,1739855380145,-500.0,0.0001378,2]
[353462519,1739855380168,-500.0,0.0001378,2]
[353462520,1739855380190,-500.0,0.0001378,2]
[353462521,1739855380212,-500.0,0.0001378,2]
[353462522,1739855380236,-433.29,0.0001378,2]
[353462523,1739855380258,-502.13358917,0.0001378,2]
[353462524,1739855380284,-500.0,0.0001378,2]
[353462525,1739855380306,-500.0,0.0001378,2]
[353462526,1739855380329,-358.34109361,0.0001378,2]
[353462527,1739855380447,-500.0,0.0001378,2]
[353462528,1739855380471,-452.85473752,0.0001378,2]
[353462529,1739855380496,-529.38,0.0001378,2]
[353462530,1739855380520,-500.0,0.0001378,2]
[353462531,1739855380545,-166.38,0.0001378,2]
[353462532,1739855380570,-83.25966721,0.0001378,2]
[353462582,1739855432291,-900.0,0.00013068,2]
[353462584,1739855432300,-362.53859772,0.00013698,2]
[353462617,1739855439424,-137.46140228,0.00013698,2]
[353462618,1739855439434,-500.0,0.00013698,2]
[353462619,1739855439444,-500.0,0.00013698,2]
[353462620,1739855439458,-500.0,0.00013698,2]
[353462621,1739855439468,-500.0,0.00013698,2]
[353462622,1739855439478,-592.32,0.00013698,2]
[353462624,1739855439488,-500.0,0.00013698,2]
[353462626,1739855439498,-377.6104768,0.00013698,2]
[353462628,1739855439507,-376.68,0.00013698,2]
[353462630,1739855439517,-500.0,0.00013698,2]
[353462632,1739855439528,-500.0,0.00013698,2]
[353462634,1739855439540,-500.0,0.00013698,2]
[353462636,1739855439550,-500.0,0.00013698,2]
[353462638,1739855439560,-416.74033279,0.0001378,2]
[353462640,1739855439570,-500.0,0.0001378,2]
[353462641,1739855439581,-218.91,0.0001378,2]
[353462643,1739855439590,-403.89,0.0001378,2]
[353462645,1739855439600,-500.0,0.0001378,2]
[353462647,1739855439611,-500.0,0.0001378,2]
[353462650,1739855439625,-685.19,0.0001378,2]
[353462652,1739855439638,-500.0,0.0001378,2]
[353462654,1739855439650,-625.3,0.0001378,2]
[353462657,1739855439663,-272.9,0.0001378,2]
[353462659,1739855439675,-500.0,0.0001378,2]
[353462661,1739855439686,-1271.99,0.0001378,2]
[353462663,1739855439696,-511.68,0.0001378,2]
[353462665,1739855439706,-500.0,0.0001378,2]
[353462667,1739855439719,-500.0,0.0001378,2]
[353462670,1739855439730,-500.0,0.0001378,2]
[353462672,1739855439741,-500.0,0.0001378,2]
[353462674,1739855439753,-500.0,0.0001378,2]
[353462676,1739855439765,-500.0,0.0001378,2]
[353462679,1739855439777,-585.74,0.0001378,2]
[353462681,1739855439788,-249.75,0.0001378,2]
[353462683,1739855439800,-500.0,0.0001378,2]
[353462686,1739855439812,-500.0,0.0001378,2]
[353462688,1739855439823,-500.0,0.0001378,2]
[353462690,1739855439837,-500.0,0.0001378,2]
[353462692,1739855439848,-500.0,0.0001378,2]
[353462694,1739855439860,-500.0,0.0001378,2]
[353462696,1739855439871,-405.22,0.0001378,2]
[353462698,1739855439883,-500.0,0.0001378,2]
[353462700,1739855439895,-500.0,0.0001378,2]
[353462703,1739855439906,-607.25,0.0001378,2]
[353462705,1739855439918,-545.23941038,0.0001378,2]
[353462707,1739855439930,-500.0,0.0001378,2]
[353462709,1739855439943,-500.0,0.0001378,2]
[353462712,1739855439954,-547.3,0.0001378,2]
[353462714,1739855439965,-155.12752155,0.0001378,2]
[353462717,1739855439977,-500.0,0.0001378,2]
[353462719,1739855439987,-500.0,0.0001378,2]
[353462721,1739855439997,-500.0,0.0001378,2]
[353462723,1739855440007,-387.32,0.00013802,2]
[353462725,1739855440018,-500.0,0.00013863,2]
[353462727,1739855440029,-500.0,0.00013863,2]
[353462729,1739855440041,-503.19341236,0.00013863,2]
[353462731,1739855440052,-502.07186726,0.00013863,2]
[353462733,1739855440063,-135.67934905,0.00013863,2]
[353462736,1739855440079,-364.32065095,0.00013863,2]
[353462738,1739855440091,-518.28,0.00013863,2]
[353462740,1739855440103,-567.38,0.00013863,2]
[353462744,1739855440115,-623.59,0.00013863,2]
[353462746,1739855440127,-502.2314325,0.00013863,2]
[353462748,1739855440139,-510.03775686,0.00013863,2]
[353462750,1739855440152,-500.0,0.00013863,2]
[353462751,1739855440164,-500.0,0.00013863,2]
[353462752,1739855440178,-500.0,0.00013863,2]
[353462753,1739855440189,-500.0,0.00013863,2]
[353462754,1739855440199,-500.0,0.00013863,2]
[353462756,1739855440209,-500.0,0.00013863,2]
[353462758,1739855440219,-500.0,0.00013863,2]
[353462761,1739855440229,-500.0,0.00013863,2]
[353462763,1739855440239,-500.0,0.00013863,2]
[353462766,1739855440250,-500.0,0.00013863,2]
[353462768,1739855440262,-389.25730818,0.00013863,2]
[353462770,1739855440277,-110.74269182,0.00013863,2]
[353462772,1739855440291,-500.0,0.00013863,2]
[353462775,1739855440303,-500.0,0.00013863,2]
[353462777,1739855440314,-128.00196425,0.00013863,2]
[353462779,1739855440327,-371.99803575,0.00013863,2]
[353462781,1739855440338,-325.41,0.00013863,2]
[353462783,1739855440349,-500.0,0.00013863,2]
[353462785,1739855440359,-500.0,0.00013863,2]
[353462787,1739855440370,-193.55117413,0.00013863,2]
[353462790,1739855440382,-278.0,0.00013863,2]
[353462792,1739855440393,-171.82,0.00013863,2]
[353462794,1739855440403,-500.0,0.00013863,2]
[353462796,1739855440413,-309.92,0.00013863,2]
[353462798,1739855440424,-500.0,0.00013863,2]
[353462800,1739855440435,-217.99,0.00013863,2]
[353462802,1739855440451,-685.19,0.00013863,2]
[353462804,1739855440463,-500.0,0.00013863,2]
[353462806,1739855440473,-762.61333612,0.00013863,2]
[353462809,1739855440488,-509.37666388,0.00013863,2]
[353462811,1739855440498,-500.0,0.00013863,2]
[353462813,1739855440509,-500.0,0.00013863,2]
[353462815,1739855440520,-500.0,0.00013863,2]
[353462817,1739855440531,-500.0,0.00013863,2]
[353462819,1739855440541,-590.73,0.00013863,2]
[353462821,1739855440552,-500.0,0.00013863,2]
[353462823,1739855440563,-207.88,0.00013863,2]
[353462825,1739855440574,-500.0,0.00013863,2]
[353462828,1739855440585,-500.0,0.00013863,2]
[353462830,1739855440595,-184.55,0.00013863,2]
[353462832,1739855440607,-500.0,0.00013863,2]
[353462834,1739855440620,-473.3,0.00013863,2]
[353462836,1739855440631,-190.72,0.00013863,2]
[353462838,1739855440641,-557.94,0.00013863,2]
[353462840,1739855440652,-500.0,0.00013863,2]
[353462842,1739855440664,-500.0,0.00013871,2]
[353462844,1739855440676,-329.07,0.00013945,2]
[353462846,1739855440687,-535.78,0.00013945,2]
[353462849,1739855440698,-500.0,0.00013945,2]
[353462851,1739855440709,-195.06,0.00013945,2]
[353462853,1739855440720,-316.48,0.00013945,2]
[353462855,1739855440730,-500.0,0.00013945,2]
[353462857,1739855440739,-615.01,0.00013945,2]
[353462859,1739855440748,-500.0,0.00013945,2]
[353462861,1739855440758,-544.61215908,0.00013945,2]
[353462863,1739855440767,-500.0,0.00013945,2]
[353462865,1739855440777,-517.37,0.00013945,2]
[353462867,1739855440786,-500.0,0.00013945,2]
[353462868,1739855440795,-500.0,0.00013945,2]
[353462870,1739855440804,-685.19,0.00013945,2]
[353462884,1739855440932,-500.0,0.00013945,2]
[353462886,1739855440943,-1271.99,0.00013945,2]
[353462888,1739855440953,-500.0,0.00013945,2]
[353462890,1739855440963,-500.0,0.00013945,2]
[353462892,1739855440972,-500.0,0.00013945,2]
[353462894,1739855440982,-500.0,0.00013945,2]
[353462896,1739855440992,-500.0,0.00013945,2]
[353462898,1739855441002,-445.52,0.00013945,2]
[353462900,1739855441012,-264.85,0.00013945,2]
[353462902,1739855441021,-500.0,0.00013973,2]
[353462904,1739855441031,-500.0,0.00013974,2]
[353462906,1739855441041,-202.6,0.00014027,2]
[353462908,1739855441050,-560.22,0.00014027,2]
[353462910,1739855441060,-500.0,0.00014027,2]
[353462912,1739855441070,-500.0,0.00014027,2]
[353462914,1739855441080,-475.95,0.00014027,2]
[353462916,1739855441089,-685.19,0.00014027,2]
[353462918,1739855441099,-500.0,0.00014027,2]
[353462920,1739855441108,-1271.99,0.00014027,2]
[353462921,1739855441118,-403.91,0.00014027,2]
[353462923,1739855441127,-500.0,0.00014027,2]
[353462925,1739855441136,-500.0,0.00014027,2]
[353462927,1739855441146,-500.0,0.00014027,2]
[353462928,1739855441155,-248.08,0.00014027,2]
[353462929,1739855441165,-500.0,0.00014109,2]
[353462930,1739855441175,-450.43,0.00014109,2]
[353462931,1739855441186,-685.19,0.00014109,2]
[353462933,1739855441196,-500.0,0.00014109,2]
[353462935,1739855441206,-1271.99,0.00014109,2]
[353462937,1739855441216,-500.0,0.00014109,2]
[353462939,1739855441225,-355.18,0.00014109,2]
[353462941,1739855441234,-500.0,0.00014109,2]
[353462943,1739855441244,-500.0,0.00014191,2]
[353462945,1739855441253,-685.19,0.00014191,2]
[353462947,1739855441263,-500.0,0.00014191,2]
[353462948,1739855441273,-1271.99,0.00014191,2]
[353462949,1739855441282,-500.0,0.00014191,2]
[353462950,1739855441292,-500.0,0.00014191,2]
[353462951,1739855441301,-500.0,0.00014273,2]
[353462952,1739855441310,-685.19,0.00014273,2]
[353462953,1739855441320,-500.0,0.00014273,2]
[353462954,1739855441330,-1271.99,0.00014273,2]
[353462955,1739855441340,-174.08,0.00014273,2]
[353462956,1739855441350,-500.0,0.00014273,2]
[353462957,1739855441359,-500.0,0.00014356,2]
[353462958,1739855441368,-685.19,0.00014356,2]
[353462959,1739855441378,-500.0,0.00014356,2]
[353462960,1739855441387,-1271.99,0.00014356,2]
[353462961,1739855441396,-500.0,0.00014356,2]
[353462962,1739855441406,-500.0,0.00014438,2]
[353462963,1739855441415,-685.19,0.00014438,2]
[353462964,1739855441425,-500.0,0.00014438,2]
[353462965,1739855441435,-1271.99,0.00014438,2]
[353462966,1739855441445,-500.0,0.00014438,2]
[353462967,1739855441460,-900.0,0.00014438,2]
[353462968,1739855441469,-344.51712081,0.00014486,2]
[353462969,1739855441478,-500.0,0.0001452,2]
[353462970,1739855441488,-685.19,0.0001452,2]
[353462971,1739855441498,-206.95,0.0001452,2]
[353462972,1739855441507,-1271.99,0.0001452,2]
[353462973,1739855441517,-330.87,0.0001452,2]
[353462974,1739855441528,-500.0,0.00014602,2]
[353462975,1739855441538,-685.19,0.00014602,2]
[353462976,1739855441547,-1271.99,0.00014602,2]
[353462977,1739855441558,-500.0,0.00014684,2]
[353462978,1739855441568,-685.19,0.00014684,2]
[353462979,1739855441578,-1271.99,0.00014684,2]
[353462980,1739855441587,-500.0,0.00014767,2]
[353462981,1739855441597,-685.19,0.00014767,2]
[353462982,1739855441606,-1271.99,0.00014767,2]
[353462983,1739855441617,-500.0,0.00014849,2]
[353462984,1739855441626,-685.19,0.00014849,2]
[353462985,1739855441636,-1271.99,0.00014849,2]
[353462986,1739855441644,-285.95,0.000149,2]
[353462987,1739855441653,-300.0,0.000149,5]
[353462988,1739855441664,-500.0,0.00014931,2]
[353462989,1739855441674,-685.19,0.00014931,2]
[353462990,1739855441683,-1271.99,0.00014931,2]
[353462991,1739855441692,-500.0,0.00015013,2]
[353462992,1739855441702,-685.19,0.00015013,2]
[353462993,1739855441711,-1271.99,0.00015013,2]
[353462994,1739855441720,-500.0,0.00015095,2]
[353462995,1739855441729,-685.19,0.00015095,2]
[353462996,1739855441739,-1271.99,0.00015095,2]
[353462997,1739855441748,-500.0,0.00015178,2]
[353462998,1739855441757,-685.19,0.00015178,2]
[353462999,1739855441767,-1271.99,0.00015178,2]
[353463000,1739855441776,-500.0,0.0001526,2]
[353463001,1739855441785,-685.19,0.0001526,2]
[353463002,1739855441795,-1271.99,0.0001526,2]
[353463003,1739855441804,-685.19,0.00015342,2]
[353463004,1739855441814,-1271.99,0.00015342,2]
[353463005,1739855441823,-685.19,0.00015424,2]
[353463006,1739855441832,-1271.99,0.00015424,2]
[353463007,1739855441843,-500.0,0.00015504,2]
[353463008,1739855441852,-685.19,0.00015506,2]
[353463009,1739855441863,-1271.99,0.00015506,2]
[353463010,1739855441872,-685.21,0.00015589,2]
[353463011,1739855441882,-1272.0,0.00015589,2]
[353463012,1739855441892,-500.0,0.00015604,2]
[353463013,1739855441902,-500.0,0.00015704,2]
[353463014,1739855441912,-897.37,0.00015804,2]
[353463015,1739855441921,-900.0,0.00015808,2]
[353463016,1739855441935,-490.70060677,0.00015818,2]
[353463017,1739855441945,-396.0,0.00016077,2]
[353463018,1739855441954,-150.0,0.00016099,2]
[353463019,1739855441964,-538.0,0.00016099,2]
[353463020,1739855441974,-1971.0,0.00016099,2]
[353463021,1739855441983,-2291.0,0.00016099,2]
[353463022,1739855441993,-585.98,0.00016164,2]
[353463023,1739855442002,-1000.0,0.00016874,30]
[353463024,1739855442012,-1000.0,0.00016874,30]
[353463025,1739855442021,-1000.0,0.00016874,30]
[353463026,1739855442030,-1000.0,0.00016874,30]
[353463027,1739855442040,-1000.0,0.00016874,30]
[353463028,1739855442049,-1187.81649,0.00016874,30]
[353463029,1739855442059,-900.0,0.00017178,2]
[353463030,1739855442068,-712.8223212,0.00017322,2]
[353463031,1739855442078,-400.0,0.00017332,2]
[353463032,1739855442087,-585.98,0.00017534,4]
[353463033,1739855442097,-355.1269712,0.00017633,2]
[353463034,1739855442106,-355.1269712,0.00017633,2]
[353463035,1739855442116,-355.1269712,0.00017633,2]
[353463036,1739855442126,-355.1269712,0.00017633,2]
[353463037,1739855442135,-355.1269712,0.00017633,2]
[353463038,1739855442144,-355.1269712,0.00017633,2]
[353463039,1739855442154,-355.1269712,0.00017633,2]
[353463040,1739855442165,-355.1269712,0.00017633,2]
[353463041,1739855442175,-355.1269712,0.00017633,2]
[353463042,1739855442184,-355.1269712,0.00017633,2]
[353463043,1739855442194,-355.1269712,0.00017633,2]
[353463044,1739855442203,-355.1269712,0.00017633,2]
[353463045,1739855442212,-355.1269712,0.00017633,2]
[353463046,1739855442222,-355.1269712,0.00017633,2]
[353463047,1739855442232,-355.1269712,0.00017633,2]
[353463048,1739855442242,-355.1269712,0.00017633,2]
[353463049,1739855442251,-355.1269712,0.00017633,2]
[353463050,1739855442260,-355.1269712,0.00017633,2]
[353463051,1739855442270,-355.1269712,0.00017633,2]
[353463052,1739855442279,-180.6477155,0.00017633,2]
[353463053,1739855442291,-244.5126284,0.00017638,2]
[353463054,1739855442307,-183.1015315,0.00017733,2]
[353463055,1739855442328,-216.0000907,0.00017733,2]
[353463056,1739855442344,-274.711684,0.00017733,2]
[353463057,1739855442355,-155.6037324,0.00017733,2]
[353463058,1739855442364,-153.7597851,0.00017733,2]
[353463059,1739855442373,-216.0000907,0.00017733,2]
[353463060,1739855442382,-154.7234452,0.00017733,2]
[353463061,1739855442391,-216.0000907,0.00017733,2]
[353463062,1739855442401,-154.7234452,0.00017733,2]
[353463063,1739855442410,-216.0000907,0.00017733,2]
[353463064,1739855442419,-216.0000907,0.00017733,2]
[353463065,1739855442429,-216.0000907,0.00017733,2]
[353463066,1739855442438,-216.0000907,0.00017733,2]
[353463067,1739855442448,-216.0000907,0.00017733,2]
[353463068,1739855442461,-216.0000907,0.00017733,2]
[353463069,1739855442470,-216.0000907,0.00017733,2]
[353463070,1739855442480,-3000.0,0.000179,2]
[353463071,1739855442491,-189.99181992,0.000179,2]
[353463072,1739855442502,-500.0,0.00017999,2]
[353463073,1739855442511,-193.14808749,0.00017999,2]
[353463074,1739855442520,-33422.61324397,0.00018,5]
[353463075,1739855442530,-1170.93819982,0.00018,5]
[353463076,1739855442539,-284271.88818096,0.00018,15]
[353463077,1739855442548,-328761.61015804,0.00018,15]
[353463078,1739855442601,-4858.80833065,0.00018,15]
[353463080,1739855442613,-47355.50111438,0.00018,15]
[353463081,1739855442624,-15634.52012893,0.00018,15]
[353463083,1739855442635,-3396.7736258,0.00018,15]
[353463084,1739855442650,-18811.67656229,0.00018,15]
[353463104,1739855446170,-16529.36565926,0.00018,15]
[353463114,1739856425153,-258.02951167,0.00010578,2]
[353463115,1739856425181,-170.21372242,0.00010685,2]
[353463116,1739856427132,-229.78627758,0.00010685,2]
[353463117,1739856427152,-2712.04937273,0.00011752,2]
[353463118,1739856427177,-300.0,0.00011954,2]
[353463119,1739856427199,-1079.133345,0.00011955,2]
[353463120,1739856440121,-229.78627758,0.00010578,2]
[353463121,1739856440144,-491.34974867,0.00011955,2]
[353463122,1739856442077,-1283.07612336,0.00011955,2]
[353463123,1739856450134,-281.20317066,0.00011835,2]
[353463124,1739856547171,-1089.01055176,0.00011835,2]
[353463125,1739856547193,-250.0,0.00011929,2]
[353463126,1739856547217,-300.0,0.00011954,2]
[353463127,1739856547239,-10479.28836087,0.00011955,2]
[353463128,1739856547261,-1200.0,0.00011972,2]
[353463129,1739856574094,-7834.93037026,0.00012708,2]
[353463130,1739856574117,-6332.54122432,0.00012735,2]
[353463157,1739856632483,-200.0,0.000126,2]
[353463158,1739856632493,-200.0,0.000126,2]
[353463159,1739856632502,-200.0,0.000126,3]
[353463160,1739856632511,-200.0,0.000126,3]
[353463161,1739856632520,-6877.67965351,0.00012735,2]
[353463162,1739856632544,-3661.05224127,0.00012735,2]
[353463163,1739856632553,-1100.0,0.00013068,2]
[353463164,1739856632562,-336.52984249,0.0001368,2]
[353463165,1739856632571,-424.72401432,0.00013698,2]
[353463166,1739856632581,-500.0,0.00013698,2]
[353463167,1739856632590,-362.33072118,0.00013698,2]
[353463168,1739856632599,-506.02512467,0.00013698,2]
[353463169,1739856632608,-336.0193412,0.00013698,2]
[353463170,1739856632617,-500.0,0.00013698,2]
[353463171,1739856632626,-500.0,0.00013698,2]
[353463172,1739856632635,-503.21458797,0.00013698,2]
[353463173,1739856632645,-500.0,0.00013698,2]
[353463174,1739856632654,-500.0,0.00013698,2]
[353463175,1739856632663,-500.0,0.00013698,2]
[353463177,1739856632673,-504.19603379,0.00013698,2]
[353463179,1739856632682,-258.75019048,0.00013698,2]
[353463181,1739856632692,-500.0,0.00013698,2]
[353463183,1739856632703,-500.0,0.00013698,2]
[353463185,1739856632713,-516.95640833,0.00013698,2]
[353463187,1739856632722,-500.0,0.00013698,2]
[353463189,1739856632731,-500.0,0.00013698,2]
[353463191,1739856632741,-309.95345184,0.00013698,2]
[353463192,1739856632750,-500.0,0.00013698,2]
[353463193,1739856632759,-500.0,0.00013698,2]
[353463194,1739856632768,-500.0,0.00013698,2]
[353463195,1739856632777,-501.47168877,0.00013698,2]
[353463196,1739856632786,-501.18218391,0.00013698,2]
[353463197,1739856632796,-500.47878859,0.00013698,2]
[353463198,1739856632805,-501.77942504,0.00013698,2]
[353463199,1739856632815,-500.0,0.00013698,2]
[353463200,1739856632827,-500.0,0.00013698,2]
[353463201,1739856632839,-500.0,0.00013698,2]
[353463202,1739856632851,-500.46627092,0.00013698,2]
[353463203,1739856632860,-179.44644841,0.00013698,2]
[353463204,1739856632873,-320.55355159,0.00013698,2]
[353463205,1739856632883,-500.0,0.00013698,2]
[353463206,1739856632892,-162.56238337,0.00013698,2]
[353463207,1739856632905,-337.43761663,0.00013698,2]
[353463208,1739856632915,-503.42594546,0.00013698,2]
[353463209,1739856632924,-218.14743005,0.00013698,2]
[353463210,1739856632933,-500.0,0.00013698,2]
[353463211,1739856632943,-500.0,0.00013698,2]
[353463212,1739856632953,-500.0,0.00013698,2]
[353463213,1739856632962,-500.0,0.00013698,2]
[353463214,1739856632972,-500.0,0.00013698,2]
[353463215,1739856632982,-527.0261349,0.00013698,2]
[353463216,1739856632991,-501.66895119,0.00013698,2]
[353463217,1739856633000,-247.63597903,0.00013698,2]
[353463218,1739856633010,-509.45484516,0.00013698,2]
[353463219,1739856633019,-500.0,0.00013698,2]
[353463220,1739856633028,-500.0,0.00013698,2]
[353463221,1739856633038,-500.0,0.00013698,2]
[353463222,1739856633048,-633.30671295,0.00013698,2]
[353463223,1739856633057,-43.34823035,0.00013698,2]
[353463245,1739856638196,-200.0,0.000136,3]
[353463246,1739856638206,-200.0,0.000136,3]
[353463247,1739856638215,-500.0,0.00013697,2]
[353463248,1739856638224,-502.51345452,0.00013697,2]
[353463249,1739856638234,-454.88624005,0.00013697,2]
[353463250,1739856638243,-636.67959803,0.00013697,2]
[353463251,1739856638252,-500.0,0.00013697,2]
[353463252,1739856638262,-500.0,0.00013697,2]
[353463253,1739856638271,-500.0,0.00013697,2]
[353463254,1739856638280,-500.0,0.00013697,2]
[353463255,1739856638289,-500.0,0.00013697,2]
[353463256,1739856638299,-500.0,0.00013697,2]
[353463257,1739856638308,-500.0,0.00013697,2]
[353463258,1739856638317,-500.0,0.00013697,2]
[353463259,1739856638326,-500.0,0.00013697,2]
[353463260,1739856638335,-500.0,0.00013697,2]
[353463261,1739856638344,-500.0,0.00013697,2]
[353463262,1739856638354,-500.0,0.00013697,2]
[353463263,1739856638363,-500.0,0.00013697,2]
[353463264,1739856638373,-500.0,0.00013697,2]
[353463265,1739856638382,-500.0,0.00013697,2]
[353463266,1739856638482,-500.0,0.00013697,2]
[353463267,1739856638492,-349.7465159,0.00013697,2]
[353463268,1739856638502,-500.0,0.00013697,2]
[353463269,1739856638511,-500.0,0.00013697,2]